bitfinex/quotes_BTCUSD_20241116
["timestamp","ask_amount","ask_price","bid_price","bid_amount"]
[1731800259767,0.110395,90584.0,90578.0,0.110401]
[1731800260615,0.110392,90587.0,90576.0,0.03007939]
[1731800260840,0.110393,90586.0,90580.0,0.110399]
[1731800261486,0.00275978,90589.0,90576.0,0.03007939]
[1731800261697,0.220731,90608.0,90598.0,0.110377]
[1731800261903,0.220731,90608.0,90600.0,0.110374]
[1731800262161,0.220731,90608.0,90598.0,0.076]
[1731800262392,0.110369,90605.0,90599.0,0.110376]
[1731800262828,0.11037,90604.0,90599.0,0.110376]
[1731800263037,0.11037,90604.0,90598.0,0.076]
[1731800263038,0.220733,90607.0,90598.0,0.076]
[1731800263258,0.00275929,90606.0,90598.0,0.076]
[1731800263535,0.110373,90602.0,90598.0,0.076]
[1731800263743,0.220738,90605.0,90598.0,0.076]
[1731800263744,0.331107,90605.0,90598.0,0.076]
[1731800263957,0.0008569,90600.0,90598.0,0.076]
[1731800264170,0.0008569,90600.0,90597.0,0.0492]
[1731800264602,0.1112329,90600.0,90594.0,0.110381]
[1731800264886,0.1112329,90600.0,90595.0,0.110381]
[1731800265105,0.1112319,90600.0,90593.0,0.0826]
[1731800265962,0.1112319,90600.0,90594.0,0.110381]
[1731800266175,0.1112329,90600.0,90594.0,0.110382]
[1731800266412,0.220755,90598.0,90585.0,0.08425555]
[1731800266628,0.0008569,90600.0,90585.0,0.08425555]
[1731800266629,0.110385,90592.0,90586.0,0.16578524]
[1731800266867,0.220757,90597.0,90585.0,0.19464855]
[1731800266868,0.220762,90595.0,90585.0,0.19464855]
[1731800267093,0.220757,90597.0,90585.0,0.08425555]
[1731800267306,0.110383,90594.0,90587.0,0.11039]
[1731800267535,0.110383,90594.0,90588.0,0.110389]
[1731800268180,0.11038,90596.0,90585.0,0.08425555]
[1731800268418,0.11038,90596.0,90590.0,0.110386]
[1731800269116,0.0027595,90599.0,90587.0,0.220782]
[1731800269335,0.11038,90596.0,90589.0,0.110387]
[1731800270246,0.11038,90596.0,90587.0,0.220782]
[1731800270471,0.0008569,90600.0,90586.0,0.023]
[1731800270683,0.0008569,90600.0,90599.0,0.110376]
[1731800270912,0.0008569,90600.0,90590.0,0.220774]
[1731800271379,0.0008569,90600.0,90586.0,0.023]
[1731800271380,0.0008569,90600.0,90597.0,0.110377]
[1731800272458,0.02062959,90599.0,90597.0,0.110377]
[1731800272676,0.0008569,90600.0,90597.0,0.110377]
[1731800272884,0.0206297,90599.0,90597.0,0.110377]
[1731800273092,0.0008569,90600.0,90597.0,0.110377]
[1731800273316,0.02062993,90598.0,90597.0,0.110377]
[1731800273533,0.0008569,90600.0,90597.0,0.110377]
[1731800273783,0.02063288,90598.0,90597.0,0.110377]
[1731800273965,0.02063288,90598.0,90593.0,0.110383]
[1731800274182,0.02063288,90597.0,90593.0,0.110383]
[1731800274386,0.0008569,90600.0,90593.0,0.110383]
[1731800274387,0.02063288,90596.0,90593.0,0.110383]
[1731800274598,0.0008569,90600.0,90593.0,0.110383]
[1731800274599,0.02063288,90595.0,90593.0,0.110383]
[1731800274799,0.110376,90599.0,90594.0,0.110382]
[1731800275008,0.24415187,90598.0,90585.0,0.00165555]
[1731800275250,0.110382,90595.0,90588.0,0.110389]
[1731800275444,0.02063741,90594.0,90586.0,0.110392]
[1731800275664,0.02063741,90593.0,90585.0,0.00165555]
[1731800275891,0.0008569,90600.0,90585.0,0.00165555]
[1731800275892,0.02063741,90592.0,90585.0,0.00165555]
[1731800276103,0.110388,90589.0,90585.0,0.00165555]
[1731800276332,0.02063741,90588.0,90585.0,0.00165555]
[1731800276813,0.110392,90586.0,90585.0,0.00165555]
[1731800277248,0.02063741,90586.0,90585.0,0.00165555]
[1731800277929,0.13102941,90586.0,90585.0,0.00165555]
[1731800278367,0.02063741,90586.0,90585.0,0.00165555]
[1731800278604,0.02034778,90586.0,90585.0,0.11204855]
[1731800278827,0.0008569,90600.0,90585.0,0.00165555]
[1731800278828,0.110388,90590.0,90585.0,0.00165555]
[1731800279474,0.220767,90593.0,90585.0,0.00165555]
[1731800279682,0.11039,90588.0,90585.0,0.00165555]
[1731800279915,0.22077,90592.0,90585.0,0.00165555]
[1731800279916,0.110387,90591.0,90585.0,0.00165555]
[1731800280119,0.110388,90590.0,90585.0,0.00165555]
[1731800280336,0.22077,90592.0,90585.0,0.00165555]
[1731800280558,0.110389,90589.0,90585.0,0.00165555]
[1731800281005,0.220774,90590.0,90585.0,0.00165555]
[1731800281214,0.110389,90589.0,90585.0,0.00165555]
[1731800281450,0.11039,90588.0,90585.0,0.00165555]
[1731800282065,0.110385,90592.0,90585.0,0.00165555]
[1731800282309,0.331147,90594.0,90585.0,0.00165555]
[1731800282512,0.220755,90598.0,90585.0,0.00165555]
[1731800282732,0.110383,90594.0,90587.0,0.11039]
[1731800282948,0.110383,90594.0,90588.0,0.110389]
[1731800283209,0.220753,90599.0,90586.0,0.0769]
[1731800283420,0.110378,90598.0,90591.0,0.110385]
[1731800283642,0.110378,90598.0,90587.0,0.220782]
[1731800283866,0.1112319,90600.0,90590.0,0.220774]
[1731800284145,0.0008569,90600.0,90590.0,0.220774]
[1731800284355,0.0008569,90600.0,90594.0,0.110381]
[1731800284573,0.0008569,90600.0,90596.0,0.110379]
[1731800284806,0.0008569,90600.0,90597.0,0.110378]
[1731800286966,0.0008569,90600.0,90597.0,0.220757]
[1731800287182,0.0008569,90600.0,90599.0,0.110376]
[1731800287391,0.0008569,90600.0,90599.0,0.106451]
[1731800287600,0.0008569,90600.0,90595.0,0.220762]
[1731800287801,0.0008569,90600.0,90598.0,0.110377]
[1731800288471,0.0008569,90600.0,90586.0,0.0769]
[1731800288675,0.0008569,90600.0,90599.0,0.110376]
[1731800289449,0.0008569,90600.0,90597.0,0.110378]
[1731800289651,0.0008569,90600.0,90596.0,0.220758]
[1731800289652,0.0008569,90600.0,90598.0,0.110377]
[1731800290021,0.0008569,90600.0,90599.0,0.110376]
[1731800290498,0.0008569,90600.0,90599.0,0.18947251]
[1731800290925,0.0008569,90600.0,90599.0,0.187276]
[1731800291994,0.0008569,90600.0,90599.0,0.18947203]
[1731800292196,0.0008569,90600.0,90599.0,0.21247203]
[1731800292612,0.0008569,90600.0,90599.0,0.210276]
[1731800293515,0.0008569,90600.0,90599.0,0.21247204]
[1731800293720,0.09135584,90616.0,90600.0,0.005]
[1731800293928,0.09135584,90616.0,90615.0,0.110357]
[1731800294427,0.0008567,90617.0,90614.0,0.110357]
[1731800294665,0.0008567,90617.0,90615.0,0.110356]
[1731800295311,0.0008567,90617.0,90613.0,0.110358]
[1731800295512,0.0008567,90617.0,90612.0,0.220719]
[1731800295713,0.0008567,90617.0,90614.0,0.110357]
[1731800296560,0.0008567,90617.0,90610.0,0.220726]
[1731800296770,0.0008567,90617.0,90609.0,0.0484]
[1731800296771,0.0008567,90617.0,90613.0,0.110359]
[1731800297403,0.0008567,90617.0,90610.0,0.220726]
[1731800298479,0.0008567,90617.0,90612.0,0.110359]
[1731800299132,0.0008567,90617.0,90616.0,0.110355]
[1731800299579,0.0008567,90617.0,90616.0,0.133355]
[1731800300731,0.0008567,90617.0,90616.0,0.29581755]
[1731800300979,0.0008567,90617.0,90616.0,0.186755]
[1731800301853,0.0008567,90617.0,90616.0,0.0764]
[1731800302066,0.220712,90616.0,90609.0,0.0461]
[1731800302298,0.0008567,90617.0,90610.0,0.023]
[1731800302299,0.110359,90614.0,90610.0,0.023]
[1731800302503,0.110357,90615.0,90610.0,0.133362]
[1731800302721,0.1112117,90617.0,90611.0,0.11036]
[1731800303151,0.0008567,90617.0,90610.0,0.023]
[1731800303356,0.110361,90612.0,90603.0,0.023]
[1731800303572,0.220714,90615.0,90606.0,0.06689566]
[1731800303774,0.110358,90614.0,90607.0,0.110366]
[1731800304002,0.110358,90614.0,90608.0,0.023]
[1731800304228,0.110359,90613.0,90608.0,0.023]
[1731800304446,0.110359,90613.0,90609.0,0.023]
[1731800304690,0.110359,90613.0,90605.0,0.005]
[1731800304691,0.16578524,90614.0,90595.0,0.005]
[1731800304912,0.0008567,90617.0,90595.0,0.005]
[1731800304913,0.110365,90608.0,90603.0,0.13337]
[1731800305121,0.110362,90611.0,90605.0,0.023]
[1731800305327,0.0008567,90617.0,90605.0,0.023]
[1731800305533,0.110364,90609.0,90603.0,0.023]
[1731800305761,0.0008567,90617.0,90594.0,0.123]
[1731800305762,0.24864421,90614.0,90594.0,0.123]
[1731800305988,0.24864421,90614.0,90595.0,0.220762]
[1731800306208,0.24864421,90614.0,90598.0,0.16578524]
[1731800306209,0.110371,90604.0,90598.0,0.16578524]
[1731800306418,0.110368,90606.0,90598.0,0.16578524]
[1731800306639,0.110359,90613.0,90599.0,0.00219637]
[1731800306862,0.110359,90613.0,90594.0,0.123]
[1731800306863,0.110368,90606.0,90600.0,0.110374]
[1731800307306,0.24588524,90614.0,90594.0,0.123]
[1731800307546,0.220723,90611.0,90594.0,0.110382]
[1731800307771,0.220723,90611.0,90588.0,0.0461]
[1731800307772,0.00275919,90610.0,90588.0,0.0461]
[1731800308013,0.110381,90596.0,90593.0,0.16578524]
[1731800308440,0.110381,90596.0,90590.0,0.110387]
[1731800308661,0.220756,90598.0,90590.0,0.110387]
[1731800308888,0.110381,90596.0,90591.0,0.110385]
[1731800309318,0.220756,90598.0,90591.0,0.110385]
[1731800309555,0.331134,90598.0,90591.0,0.110385]
[1731800310701,0.220756,90598.0,90589.0,0.023]
[1731800310945,0.110385,90592.0,90587.0,0.11039]
[1731800311173,0.22076,90596.0,90586.0,0.023]
[1731800311393,0.110386,90591.0,90586.0,0.023]
[1731800311836,0.110384,90593.0,90588.0,0.133389]
[1731800312930,0.110381,90595.0,90588.0,0.023]
[1731800313148,0.110381,90595.0,90590.0,0.110387]
[1731800315549,0.220753,90599.0,90588.0,0.110389]
[1731800315804,0.110385,90592.0,90586.0,0.133391]
[1731800316223,0.110385,90592.0,90588.0,0.023]
[1731800317121,0.110382,90595.0,90589.0,0.110387]
[1731800317348,0.110382,90595.0,90590.0,0.023]
[1731800318007,0.110382,90595.0,90590.0,0.110387]
[1731800318218,0.110382,90595.0,90589.0,0.110387]
[1731800318427,0.110382,90595.0,90590.0,0.023]
[1731800319798,0.220757,90597.0,90590.0,0.023]
[1731800320098,0.110382,90594.0,90590.0,0.023]
[1731800320379,0.0801,90600.0,90590.0,0.0008568]
[1731800320615,0.110386,90591.0,90590.0,0.0008568]
[1731800323408,0.189286,90591.0,90590.0,0.0008568]
[1731800323628,0.0789,90591.0,90590.0,0.0008568]
[1731800324282,0.189286,90591.0,90590.0,0.0008568]
[1731800330589,0.20988382,90591.0,90590.0,0.0008568]
[1731800331261,0.189286,90591.0,90590.0,0.0008568]
[1731800334374,0.110386,90591.0,90590.0,0.0008568]
[1731800338690,0.0027596,90592.0,90590.0,0.0008568]
[1731800338912,0.110386,90591.0,90590.0,0.0008568]
[1731800342309,0.112093,90596.0,90591.0,0.110385]
[1731800343011,0.001713,90596.0,90590.0,0.0008568]
[1731800343229,0.110383,90594.0,90590.0,0.0008568]
[1731800344146,0.001713,90596.0,90595.0,0.110381]
[1731800344608,0.001713,90596.0,90595.0,0.18837777]
[1731800346288,0.001713,90596.0,90595.0,0.186181]
[1731800347153,0.001713,90596.0,90595.0,0.18837749]
[1731800347586,0.001713,90596.0,90595.0,0.186181]
[1731800350053,0.001713,90596.0,90595.0,0.235381]
[1731800350279,0.001713,90596.0,90595.0,0.27955386]
[1731800353773,0.220721,90613.0,90595.0,0.16917286]
[1731800353998,0.110362,90611.0,90604.0,0.11037]
[1731800354896,0.110362,90611.0,90601.0,0.220746]
[1731800355128,0.110362,90611.0,90606.0,0.110367]
[1731800356510,0.110357,90615.0,90602.0,0.110372]
[1731800356732,0.110363,90610.0,90603.0,0.11037]
[1731800357450,0.110363,90610.0,90603.0,0.110371]
[1731800357671,0.110363,90610.0,90604.0,0.11037]
[1731800357917,0.04995907,90609.0,90596.0,0.00165533]
[1731800358128,0.110378,90597.0,90596.0,0.00165533]
[1731800358339,0.220753,90599.0,90590.0,0.1112438]
[1731800358340,0.0818,90608.0,90590.0,0.0008568]
[1731800358563,0.00275952,90607.0,90592.0,0.110384]
[1731800358816,0.110378,90598.0,90595.0,0.00165533]
[1731800359039,0.11038,90596.0,90595.0,0.00165533]
[1731800361096,0.23938,90596.0,90595.0,0.00165533]
[1731800362212,0.34844255,90596.0,90595.0,0.00165533]
[1731800362910,0.53117984,90596.0,90595.0,0.00165533]
[1731800363379,0.55180439,90596.0,90595.0,0.00165533]
[1731800363594,0.2294471,90596.0,90595.0,0.00165533]
[1731800363814,0.23220697,90596.0,90595.0,0.00165533]
[1731800364257,0.21158242,90596.0,90595.0,0.00165533]
[1731800364687,0.31059452,90596.0,90595.0,0.00165533]
[1731800364949,0.43541878,90596.0,90595.0,0.00165533]
[1731800365392,0.45604282,90596.0,90595.0,0.00165533]
[1731800366260,0.43541878,90596.0,90595.0,0.00165533]
[1731800366491,0.56061878,90596.0,90595.0,0.00165533]
[1731800367403,0.56060282,90596.0,90595.0,0.00165533]
[1731800367626,0.46160668,90596.0,90595.0,0.00165533]
[1731800367867,0.46160668,90596.0,90595.0,0.00336813]
[1731800368317,0.48222728,90596.0,90595.0,0.00336813]
[1731800368564,0.40522728,90596.0,90595.0,0.00336813]
[1731800369063,0.40522728,90596.0,90573.0,0.220815]
[1731800369064,0.220772,90591.0,90573.0,0.220815]
[1731800369274,0.110397,90582.0,90576.0,0.16578524]
[1731800369502,0.110398,90581.0,90576.0,0.16578524]
[1731800369735,0.00509353,90581.0,90576.0,0.16578524]
[1731800369952,0.00509353,90581.0,90576.0,0.110403]
[1731800370184,0.13101552,90582.0,90576.0,0.110403]
[1731800370401,0.00509351,90580.0,90575.0,0.110405]
[1731800370665,0.110398,90581.0,90575.0,0.110405]
[1731800370666,0.11549153,90581.0,90575.0,0.110405]
[1731800370871,0.110398,90581.0,90575.0,0.110405]
[1731800371079,0.00509351,90580.0,90575.0,0.110405]
[1731800371556,0.02061852,90586.0,90574.0,0.00219861]
[1731800371769,0.02061852,90585.0,90581.0,0.110398]
[1731800371975,0.02061852,90584.0,90581.0,0.110398]
[1731800372410,0.00506264,90583.0,90581.0,0.110398]
[1731800372646,0.00506264,90583.0,90582.0,0.159597]
[1731800372869,0.02061852,90594.0,90585.0,0.220785]
[1731800373097,0.16578524,90591.0,90588.0,0.110389]
[1731800373333,0.0050035,90593.0,90590.0,0.110387]
[1731800373544,0.13099029,90596.0,90590.0,0.110387]
[1731800373753,0.11038,90596.0,90590.0,0.110387]
[1731800373959,0.02061029,90595.0,90590.0,0.110387]
[1731800374180,0.02061029,90595.0,90586.0,0.0492]
[1731800374383,0.110378,90598.0,90592.0,0.110384]
[1731800374593,0.02061029,90597.0,90592.0,0.110384]
[1731800374816,0.02061029,90596.0,90592.0,0.110384]
[1731800375030,0.02061029,90595.0,90592.0,0.110384]
[1731800375235,0.02061029,90594.0,90592.0,0.110384]
[1731800375468,0.02061029,90597.0,90588.0,0.220779]
[1731800375688,0.02061029,90596.0,90594.0,0.110382]
[1731800375893,0.110376,90600.0,90594.0,0.110382]
[1731800375894,0.02061029,90595.0,90594.0,0.110382]
[1731800376135,0.02061029,90599.0,90594.0,0.110382]
[1731800376421,0.110376,90600.0,90594.0,0.110382]
[1731800376422,0.00500353,90595.0,90594.0,0.110382]
[1731800376637,0.00471099,90595.0,90594.0,0.110382]
[1731800376855,0.110376,90600.0,90594.0,0.110382]
[1731800377075,0.00495485,90599.0,90594.0,0.110382]
[1731800377328,0.220755,90598.0,90589.0,0.1314]
[1731800377574,0.00275953,90597.0,90589.0,0.0488]
[1731800377774,0.00275953,90597.0,90574.0,0.29718524]
[1731800377775,0.0762,90596.0,90574.0,0.29718524]
[1731800377999,0.110393,90585.0,90584.0,0.16578524]
[1731800378224,0.110398,90581.0,90575.0,0.110405]
[1731800378432,0.110398,90581.0,90574.0,0.29718524]
[1731800378433,0.110396,90583.0,90576.0,0.110404]
[1731800378848,0.00498221,90582.0,90576.0,0.110404]
[1731800379057,0.00498221,90582.0,90574.0,0.1314]
[1731800379274,0.110397,90582.0,90576.0,0.110404]
[1731800379507,0.00498219,90581.0,90576.0,0.110404]
[1731800379956,0.00498219,90581.0,90575.0,0.220811]
[1731800380193,0.110401,90579.0,90574.0,0.1314]
[1731800380403,0.00498219,90581.0,90574.0,0.1314]
[1731800380404,0.110402,90578.0,90574.0,0.1314]
[1731800380614,0.00498213,90578.0,90574.0,0.1314]
[1731800381035,0.00275992,90586.0,90574.0,0.1331134]
[1731800381242,0.220794,90582.0,90574.0,0.0017134]
[1731800381488,0.00770817,90581.0,90574.0,0.0017134]
[1731800381693,0.110404,90576.0,90574.0,0.0017134]
[1731800382106,0.00494799,90575.0,90574.0,0.0017134]
[1731800383621,0.0008567,90583.0,90574.0,0.0017134]
[1731800383828,0.00494799,90575.0,90574.0,0.0017134]
[1731800384137,0.110401,90579.0,90574.0,0.0017134]
[1731800384227,0.00494799,90575.0,90574.0,0.0017134]
[1731800384436,0.220796,90581.0,90574.0,0.0017134]
[1731800384650,0.110402,90578.0,90574.0,0.0017134]
[1731800384853,0.00494803,90577.0,90574.0,0.0017134]
[1731800385276,0.0255778,90577.0,90574.0,0.0017134]
[1731800386114,0.110404,90576.0,90574.0,0.0017134]
[1731800386318,0.0255778,90577.0,90574.0,0.0017134]
[1731800386319,0.110405,90575.0,90574.0,0.0017134]
[1731800386558,0.11534458,90575.0,90574.0,0.0017134]
[1731800387002,0.00493958,90575.0,90574.0,0.0017134]
[1731800387459,0.13597995,90575.0,90574.0,0.0017134]
[1731800391793,0.11534458,90575.0,90574.0,0.0017134]
[1731800392018,0.13599437,90575.0,90574.0,0.0017134]
[1731800393297,0.02558937,90575.0,90535.0,0.09885612]
[1731800393520,0.02558937,90575.0,90565.0,0.16578524]
[1731800393521,0.110411,90570.0,90565.0,0.16578524]
[1731800393740,0.110411,90570.0,90561.0,0.220845]
[1731800393741,0.02064979,90569.0,90562.0,0.110421]
[1731800393974,0.00493089,90569.0,90563.0,0.110419]
[1731800394182,0.11534389,90569.0,90563.0,0.110419]
[1731800394617,0.11534389,90569.0,90557.0,0.32991755]
[1731800394618,0.11534389,90569.0,90558.0,0.110426]
[1731800394828,0.00493089,90569.0,90560.0,0.331272]
[1731800395051,0.00493089,90569.0,90556.0,0.0008557]
[1731800395052,0.110426,90558.0,90556.0,0.0008557]
[1731800395283,0.02064859,90568.0,90556.0,0.0008557]
[1731800395284,0.08374952,90566.0,90556.0,0.0008557]
[1731800395560,0.00492114,90557.0,90556.0,0.0008557]
[1731800395782,0.02556686,90557.0,90556.0,0.0008557]
[1731800396235,0.13107272,90557.0,90556.0,0.0008557]
[1731800396444,0.13599386,90557.0,90556.0,0.0008557]
[1731800398682,0.00492114,90557.0,90556.0,0.0008557]
[1731800399110,0.11318766,90557.0,90556.0,0.0008557]
[1731800399360,0.11802787,90557.0,90556.0,0.0008557]
[1731800399541,0.11526721,90557.0,90556.0,0.0008557]
[1731800400723,0.00484021,90557.0,90556.0,0.2348837]
[1731800400958,0.00484021,90557.0,90556.0,0.34614537]
[1731800401208,0.110402,90578.0,90558.0,0.220852]
[1731800401431,0.16578524,90567.0,90566.0,0.110416]
[1731800401652,0.16578524,90567.0,90560.0,0.220848]
[1731800401653,0.00483336,90577.0,90561.0,0.44169]
[1731800401895,0.00483317,90567.0,90566.0,0.110416]
[1731800402098,0.00483334,90576.0,90571.0,0.11041]
[1731800402302,0.110404,90577.0,90572.0,0.110409]
[1731800402529,0.00483332,90575.0,90572.0,0.110409]
[1731800402738,0.00483334,90576.0,90569.0,0.220826]
[1731800402946,0.16578524,90581.0,90561.0,0.220845]
[1731800402947,0.0048333,90574.0,90561.0,0.220845]
[1731800403201,0.00493081,90575.0,90573.0,0.110408]
[1731800403438,0.110401,90579.0,90573.0,0.110408]
[1731800403647,0.00493079,90574.0,90573.0,0.110408]
[1731800403855,0.110402,90578.0,90571.0,0.11041]
[1731800404063,0.110401,90579.0,90564.0,0.16578524]
[1731800404277,0.00854779,90578.0,90564.0,0.16578524]
[1731800404498,0.110406,90575.0,90568.0,0.110413]
[1731800404739,0.00854779,90578.0,90564.0,0.16578524]
[1731800404740,0.00578757,90578.0,90564.0,0.16578524]
[1731800404967,0.00578757,90578.0,90572.0,0.110409]
[1731800404968,0.00493079,90574.0,90572.0,0.110409]
[1731800405183,0.00493079,90574.0,90566.0,0.220833]
[1731800405184,0.00276022,90577.0,90566.0,0.220833]
[1731800405426,0.00276022,90577.0,90572.0,0.110408]
[1731800405427,0.00493077,90573.0,90572.0,0.110408]
[1731800405654,0.00276022,90577.0,90572.0,0.110408]
[1731800405878,0.00276022,90577.0,90566.0,0.220833]
[1731800405879,0.00493083,90576.0,90569.0,0.441652]
[1731800406103,0.00493083,90576.0,90564.0,0.20981025]
[1731800406332,0.00493083,90576.0,90575.0,0.110405]
[1731800406572,0.0008567,90578.0,90577.0,0.110403]
[1731800412880,0.0008567,90578.0,90577.0,0.21946555]
[1731800413097,0.0008567,90578.0,90577.0,0.26496555]
[1731800413544,0.09049864,90590.0,90589.0,0.110388]
[1731800413972,0.09049864,90590.0,90577.0,0.0455]
[1731800414199,0.0775,90588.0,90578.0,0.16578524]
[1731800414419,0.110395,90584.0,90578.0,0.16578524]
[1731800414634,0.110395,90584.0,90579.0,0.110399]
[1731800414895,0.22354192,90587.0,90581.0,0.110397]
[1731800414896,0.110391,90587.0,90581.0,0.110397]
[1731800415131,0.110391,90587.0,90556.0,0.0028557]
[1731800415132,0.39165486,90601.0,90580.0,0.220799]
[1731800415346,0.00275958,90597.0,90583.0,0.005]
[1731800415556,0.16578524,90601.0,90600.0,0.110375]
[1731800416006,0.0453,90612.0,90598.0,0.220754]
[1731800416238,0.0453,90612.0,90596.0,0.0822]
[1731800416239,0.0027593,90612.0,90596.0,0.0822]
[1731800416449,0.110364,90610.0,90596.0,0.0822]
[1731800416662,0.110361,90611.0,90605.0,0.110368]
[1731800416884,0.1685445,90613.0,90596.0,0.0822]
[1731800417093,0.11036,90612.0,90596.0,0.0822]
[1731800417327,0.11036,90612.0,90606.0,0.110366]
[1731800417535,0.11036,90613.0,90606.0,0.110367]
[1731800417762,0.35640248,90614.0,90607.0,0.110365]
[1731800417994,0.11036,90613.0,90607.0,0.110365]
[1731800418247,0.11037,90604.0,90598.0,0.110377]
[1731800418467,0.11037,90604.0,90586.0,0.005]
[1731800418468,0.00275923,90612.0,90594.0,0.16578524]
[1731800418702,0.11038,90596.0,90591.0,0.16578524]
[1731800418928,0.00275966,90595.0,90591.0,0.16578524]
[1731800419358,0.220745,90602.0,90592.0,0.22077]
[1731800419359,0.00275966,90601.0,90592.0,0.22077]
[1731800419573,0.00275938,90606.0,90592.0,0.22077]
[1731800419824,0.16854461,90610.0,90593.0,0.27484779]
[1731800420058,0.09976978,90617.0,90593.0,0.27484779]
[1731800420059,0.00275918,90616.0,90594.0,0.0455]
[1731800420271,0.16578524,90609.0,90596.0,0.22076]
[1731800420511,0.00275924,90608.0,90596.0,0.22076]
[1731800420744,0.110362,90611.0,90604.0,0.110369]
[1731800420955,0.00275924,90610.0,90604.0,0.110369]
[1731800421162,0.00275924,90610.0,90592.0,0.0822]
[1731800421163,0.110364,90609.0,90592.0,0.0822]
[1731800421434,0.00275924,90608.0,90603.0,0.11037]
[1731800421867,0.00275924,90608.0,90597.0,0.16578524]
[1731800421868,0.0008567,90617.0,90609.0,0.110363]
[1731800422092,0.110359,90613.0,90598.0,0.220755]
[1731800422303,0.110359,90613.0,90607.0,0.110366]
[1731800422859,0.00275924,90614.0,90604.0,0.220738]
[1731800422860,0.110361,90612.0,90606.0,0.110367]
[1731800423070,0.110361,90612.0,90604.0,0.220738]
[1731800423278,0.22347523,90614.0,90606.0,0.110367]
[1731800423515,0.22347523,90614.0,90597.0,0.16578524]
[1731800423516,0.00275923,90614.0,90597.0,0.16578524]
[1731800423721,0.00275923,90614.0,90609.0,0.110364]
[1731800423925,0.11311723,90614.0,90609.0,0.110364]
[1731800424140,0.11311723,90614.0,90600.0,0.22075]
[1731800424349,0.11311723,90614.0,90608.0,0.110364]
[1731800424575,0.00275923,90614.0,90599.0,0.331128]
[1731800424796,0.00275924,90615.0,90597.0,0.16578524]
[1731800425006,0.11036,90613.0,90608.0,0.110365]
[1731800425228,0.00275924,90615.0,90597.0,0.16578524]
[1731800425451,0.11036,90613.0,90608.0,0.110364]
[1731800425655,0.11036,90613.0,90606.0,0.220735]
[1731800425656,0.110356,90616.0,90609.0,0.110363]
[1731800425861,0.00361586,90617.0,90609.0,0.110363]
[1731800426511,0.220711,90616.0,90609.0,0.110363]
[1731800426742,0.110358,90614.0,90609.0,0.110363]
[1731800426993,0.110358,90614.0,90608.0,0.110365]
[1731800427224,0.00275916,90613.0,90604.0,0.22074]
[1731800427432,0.11036,90612.0,90606.0,0.110367]
[1731800428314,0.11311919,90612.0,90606.0,0.110367]
[1731800428541,0.03611919,90612.0,90606.0,0.110367]
[1731800428754,0.00275919,90612.0,90606.0,0.110367]
[1731800429376,0.11036,90612.0,90606.0,0.110367]
[1731800430214,0.11036,90612.0,90607.0,0.110366]
[1731800430426,0.11311919,90612.0,90607.0,0.110366]
[1731800431066,0.00275919,90612.0,90608.0,0.110364]
[1731800431509,0.00275916,90613.0,90608.0,0.110364]
[1731800431754,0.00275916,90613.0,90598.0,0.220755]
[1731800431963,0.110389,90588.0,90587.0,0.0455]
[1731800432173,0.0798,90595.0,90569.0,0.005]
[1731800432174,0.110393,90585.0,90571.0,0.1252]
[1731800432407,0.00275979,90594.0,90571.0,0.1252]
[1731800432408,0.110388,90590.0,90582.0,0.110397]
[1731800432641,0.11039,90588.0,90580.0,0.220797]
[1731800432912,0.00275988,90589.0,90577.0,0.16578524]
[1731800433163,0.110391,90587.0,90580.0,0.110399]
[1731800434104,0.110391,90587.0,90577.0,0.16578524]
[1731800434346,0.110393,90585.0,90577.0,0.16578524]
[1731800434562,0.110393,90585.0,90564.0,0.17078524]
[1731800434768,0.11315317,90585.0,90572.0,0.110408]
[1731800435180,0.11315317,90585.0,90569.0,0.110412]
[1731800435425,0.30201572,90585.0,90564.0,0.16578524]
[1731800435636,0.34765555,90585.0,90564.0,0.16578524]
[1731800437240,0.34765555,90585.0,90564.0,0.27620424]
[1731800437691,0.34765555,90585.0,90564.0,0.16578524]
[1731800437908,0.34765555,90585.0,90564.0,0.27620324]
[1731800438359,0.34765555,90585.0,90564.0,0.16578524]
[1731800438593,0.34765555,90585.0,90564.0,0.27620324]
[1731800438809,0.34765555,90585.0,90564.0,0.16578524]
[1731800439915,0.34765555,90585.0,90564.0,0.27620424]
[1731800441443,0.34765555,90585.0,90564.0,0.16578524]
[1731800443735,0.23726255,90585.0,90564.0,0.16578524]
[1731800443971,0.24002291,90585.0,90564.0,0.16578524]
[1731800444203,0.35041591,90585.0,90564.0,0.16578524]
[1731800444450,0.34765555,90585.0,90564.0,0.16578524]
[1731800448484,0.35265555,90585.0,90564.0,0.16578524]
[1731800448918,0.60574793,90585.0,90564.0,0.16578524]
[1731800450736,0.45765555,90585.0,90564.0,0.16578524]
[1731800450966,0.82216181,90585.0,90564.0,0.16578524]
[1731800451657,0.60574893,90585.0,90564.0,0.16578524]
[1731800452584,0.45765555,90585.0,90564.0,0.16578524]
[1731800452816,0.45936875,90585.0,90564.0,0.16578524]
[1731800453306,0.60745257,90585.0,90564.0,0.16578524]
[1731800453566,0.84876287,90585.0,90564.0,0.16578524]
[1731800453778,0.36867119,90565.0,90564.0,0.16578524]
[1731800453999,0.48273374,90565.0,90564.0,0.16578524]
[1731800454240,0.45507955,90565.0,90564.0,0.16578524]
[1731800454454,0.45507955,90565.0,90556.0,0.0008557]
[1731800454455,0.110427,90557.0,90556.0,0.0008557]
[1731800454722,0.34990482,90557.0,90556.0,0.0008557]
[1731800454932,0.34714374,90557.0,90556.0,0.0008557]
[1731800455146,0.44714374,90557.0,90556.0,0.0008557]
[1731800455375,0.53044374,90557.0,90556.0,0.0008557]
[1731800455582,0.55100291,90557.0,90556.0,0.0008557]
[1731800456030,0.59830291,90557.0,90556.0,0.0008557]
[1731800456911,0.60330291,90557.0,90556.0,0.0008557]
[1731800457123,0.60530291,90557.0,90556.0,0.0008557]
[1731800457363,0.70400613,90557.0,90556.0,0.0008557]
[1731800457578,0.60530291,90557.0,90556.0,0.0008557]
[1731800457790,0.60530305,90557.0,90556.0,0.0008557]
[1731800458001,0.58474374,90557.0,90556.0,0.0008557]
[1731800458655,0.47431674,90557.0,90556.0,0.0008557]
[1731800458859,0.58474374,90557.0,90556.0,0.0008557]
[1731800459080,0.60530376,90557.0,90556.0,0.0008557]